bitfinex/quotes_BTCUSD_20251205
["timestamp","ask_amount","ask_price","bid_price","bid_amount"]
[1764937413603,0.21943057,91145.0,91144.0,0.00465]
[1764937414050,0.21942855,91146.0,91144.0,0.00465]
[1764937414248,0.01097092,91150.0,91145.0,0.01513]
[1764937414551,0.2303855,91152.0,91151.0,0.02154041]
[1764937415428,0.21941869,91150.0,91149.0,0.02154041]
[1764937415668,0.21942576,91147.0,91146.0,0.04620041]
[1764937415882,0.21942335,91148.0,91146.0,0.02466]
[1764937416092,0.21942335,91148.0,91147.0,0.01513]
[1764937416267,0.01097092,91150.0,91147.0,0.01513]
[1764937416443,0.01097092,91150.0,91147.0,0.03979]
[1764937416649,0.21942335,91148.0,91147.0,0.03979]
[1764937416848,0.21942335,91148.0,91147.0,0.01513]
[1764937417255,0.21942335,91148.0,91147.0,0.002]
[1764937418257,0.21942335,91148.0,91147.0,0.003]
[1764937418667,0.21942107,91149.0,91147.0,0.003]
[1764937419075,0.21942223,91149.0,91148.0,0.01513]
[1764937420017,0.01097092,91150.0,91148.0,0.01513]
[1764937420018,0.23039099,91150.0,91148.0,0.01513]
[1764937420185,0.0109708,91151.0,91148.0,0.01513]
[1764937420392,0.21941854,91150.0,91148.0,0.01513]
[1764937420591,0.23038917,91151.0,91148.0,0.01513]
[1764937420792,0.0109708,91151.0,91148.0,0.01513]
[1764937421134,0.0109708,91151.0,91148.0,0.02710116]
[1764937421455,0.21941865,91150.0,91148.0,0.001]
[1764937421660,0.21941865,91150.0,91147.0,0.01097128]
[1764937422090,0.23038719,91151.0,91148.0,0.23139257]
[1764937422279,0.23038719,91151.0,91149.0,0.21942025]
[1764937422516,0.0109702,91156.0,91150.0,0.01097092]
[1764937422732,0.23036762,91159.0,91156.0,0.24094374]
[1764937422960,0.01096936,91163.0,91160.0,0.21939447]
[1764937423175,0.21938976,91162.0,91160.0,0.01513]
[1764937423384,0.2413172,91161.0,91160.0,0.03979]
[1764937423628,0.02192514,91161.0,91160.0,0.03979]
[1764937423835,0.01096888,91167.0,91163.0,0.21938488]
[1764937424058,0.21937567,91168.0,91166.0,0.02154041]
[1764937424215,0.251638,91167.0,91165.0,0.01137]
[1764937424421,0.01096912,91165.0,91157.0,0.01097008]
[1764937424584,0.23036405,91161.0,91158.0,0.02339996]
[1764937424820,0.01096996,91158.0,91154.0,0.01097044]
[1764937425098,0.23036999,91158.0,91155.0,0.23037474]
[1764937425313,0.01097032,91155.0,91152.0,0.01243]
[1764937425716,0.24133645,91153.0,91150.0,0.01097092]
[1764937425920,0.0109708,91151.0,91148.0,0.23038993]
[1764937426048,0.0109708,91151.0,91148.0,0.33397116]
[1764937426256,0.21941914,91150.0,91148.0,0.323]
[1764937426861,0.01097068,91152.0,91148.0,0.323]
[1764937427066,0.0109708,91151.0,91148.0,0.002]
[1764937427278,0.23038771,91151.0,91147.0,0.55339479]
[1764937427489,0.01097068,91152.0,91148.0,0.01097116]
[1764937427693,0.23038661,91152.0,91149.0,0.21941888]
[1764937428229,0.21941702,91151.0,91148.0,0.23139433]
[1764937428648,0.21941616,91151.0,91148.0,0.23339433]
[1764937428777,0.23038898,91151.0,91148.0,0.22242258]
[1764937428996,0.0109708,91151.0,91149.0,0.2194206]
[1764937429207,0.23038727,91151.0,91149.0,0.001]
[1764937429419,0.23038909,91152.0,91149.0,0.22041891]
[1764937429748,0.25230731,91153.0,91149.0,0.25653195]
[1764937429950,0.02192514,91153.0,91151.0,0.21941468]
[1764937430154,0.01096948,91162.0,91159.0,0.01096984]
[1764937430359,0.21939211,91161.0,91160.0,0.02414]
[1764937430780,0.010969,91166.0,91163.0,0.21938725]
[1764937431015,0.0220446,91167.0,91165.0,0.24652144]
[1764937431217,0.24142288,91167.0,91166.0,0.01569]
[1764937431402,0.21938003,91166.0,91165.0,0.01145]
[1764937431608,0.01096984,91159.0,91156.0,0.01235]
[1764937431847,0.01097008,91157.0,91151.0,0.0233208]
[1764937432002,0.21940773,91155.0,91152.0,0.21941305]
[1764937432199,0.21940891,91154.0,91151.0,0.0233208]
[1764937432631,0.23037935,91154.0,91151.0,0.01235]
[1764937432850,0.21941372,91152.0,91151.0,0.01235]
[1764937433370,0.21941854,91150.0,91149.0,0.01736]
[1764937433545,0.21941854,91150.0,91146.0,0.323]
[1764937433546,0.21942576,91147.0,91146.0,0.323]
[1764937433751,0.21942576,91147.0,91144.0,0.00465]
[1764937433954,0.21944503,91139.0,91138.0,0.01736]
[1764937434156,0.01097213,91140.0,91138.0,0.01736]
[1764937434358,0.23040995,91142.0,91138.0,0.24777865]
[1764937434557,0.01097176,91143.0,91138.0,0.24777865]
[1764937434558,0.2304077,91143.0,91140.0,0.323]
[1764937434832,0.21943298,91144.0,91143.0,0.323]
[1764937435153,0.21943298,91144.0,91143.0,0.32339961]
[1764937435727,0.21943298,91144.0,91143.0,0.00039961]
[1764937436096,0.21943298,91144.0,91143.0,0.0023685]
[1764937437723,0.25937298,91144.0,91143.0,0.0023685]
[1764937439614,0.23508298,91144.0,91143.0,0.0023685]
[1764937439884,0.21943298,91144.0,91143.0,0.0023685]
[1764937440294,0.22966449,91144.0,91143.0,0.0023685]
[1764937440687,0.21943298,91144.0,91143.0,0.0023685]
[1764937440887,0.21943298,91144.0,91143.0,0.0187585]
[1764937441124,0.21943298,91144.0,91143.0,0.0023685]
[1764937441536,0.21943272,91145.0,91143.0,0.0023685]
[1764937441743,0.21943057,91145.0,91144.0,0.03793041]
[1764937441945,0.21943298,91144.0,91143.0,0.00039961]
[1764937442416,0.21943298,91144.0,91143.0,0.0023685]
[1764937442619,0.23039989,91146.0,91143.0,0.22180231]
[1764937442766,0.0109714,91146.0,91144.0,0.21943148]
[1764937442967,0.24134589,91150.0,91147.0,0.03251169]
[1764937443170,0.24134589,91150.0,91148.0,0.02375]
[1764937443380,0.02192514,91150.0,91149.0,0.01639]
[1764937443599,0.02192514,91150.0,91149.0,0.23581094]
[1764937443827,0.01097008,91157.0,91156.0,0.02154041]
[1764937444070,0.01097008,91157.0,91154.0,0.23037716]
[1764937444243,0.02120822,91157.0,91156.0,0.02828]
[1764937444616,0.01097008,91157.0,91156.0,0.04982041]
[1764937444836,0.01097008,91157.0,91156.0,0.07357041]
[1764937445069,0.23037177,91157.0,91156.0,0.07357041]
[1764937445607,0.23137177,91157.0,91156.0,0.07357041]
[1764937445799,0.21941207,91153.0,91148.0,0.01714116]
[1764937445960,0.23038263,91153.0,91149.0,0.21941951]
[1764937446149,0.0109708,91151.0,91148.0,0.04089116]
[1764937446339,0.01097056,91153.0,91148.0,0.04089116]
[1764937446546,0.23038771,91151.0,91148.0,0.26031233]
[1764937446950,0.23038771,91151.0,91148.0,0.26131233]
[1764937447161,0.21941959,91150.0,91148.0,0.03092]
[1764937447361,0.21941959,91150.0,91148.0,0.00717]
[1764937447563,0.21942094,91149.0,91148.0,0.00717]
[1764937448027,0.21942094,91149.0,91148.0,0.00817]
[1764937448255,0.21942094,91149.0,91148.0,0.00617]
[1764937448465,0.23079094,91149.0,91148.0,0.001]
[1764937448676,0.24644094,91149.0,91148.0,0.002]
[1764937448881,0.21943298,91144.0,91143.0,0.00039961]
[1764937450663,0.21943298,91144.0,91143.0,0.04053961]
[1764937450866,0.21943298,91144.0,91143.0,0.01678961]
[1764937451336,0.0109714,91146.0,91143.0,0.01678961]
[1764937451337,0.001,91149.0,91148.0,0.21942335]
[1764937451512,0.0109702,91156.0,91152.0,0.23038349]
[1764937451688,0.02359166,91160.0,91156.0,0.21940391]
[1764937451896,0.01096972,91160.0,91156.0,0.23037411]
[1764937452145,0.21938944,91163.0,91160.0,0.02154041]
[1764937452347,0.23035872,91164.0,91160.0,0.2519034]
[1764937452470,0.01096924,91164.0,91163.0,0.02828]
[1764937452671,0.23035408,91164.0,91163.0,0.02828]
[1764937453069,0.01096912,91165.0,91163.0,0.02828]
[1764937453268,0.02192514,91167.0,91164.0,0.23577484]
[1764937453482,0.01096864,91169.0,91166.0,0.01639]
[1764937453855,0.010969,91166.0,91163.0,0.02285936]
[1764937454055,0.23035072,91166.0,91163.0,0.01189]
[1764937454258,0.21938475,91165.0,91163.0,0.01189]
[1764937454461,0.21938484,91164.0,91163.0,0.01189]
[1764937456344,0.22038484,91164.0,91163.0,0.01189]
[1764937457511,0.21941372,91152.0,91150.0,0.01189]
[1764937458301,0.23038193,91153.0,91150.0,0.23130848]
[1764937458476,0.21941459,91152.0,91150.0,0.01189]
[1764937458858,0.21941459,91152.0,91150.0,0.01589]
[1764937459458,0.21941613,91151.0,91150.0,0.01289]
[1764937459663,0.21941459,91152.0,91150.0,0.01189]
[1764937459899,0.21941459,91152.0,91150.0,0.01365305]
[1764937460091,0.21941459,91152.0,91150.0,0.01289]
[1764937460860,0.21941613,91151.0,91150.0,0.01289]
[1764937461023,0.21941613,91151.0,91150.0,0.01589]
[1764937461427,0.21941613,91151.0,91150.0,0.01289]
[1764937462267,0.21941613,91151.0,91150.0,0.01389]
[1764937463695,0.21941613,91151.0,91150.0,0.03028]
[1764937463914,0.01097056,91153.0,91150.0,0.03028]
[1764937464116,0.01097056,91153.0,91150.0,0.05403]
[1764937464255,0.21941372,91152.0,91150.0,0.05403]
[1764937464632,0.23038658,91153.0,91150.0,0.27244629]
[1764937464841,0.23038658,91153.0,91150.0,0.28976629]
[1764937465041,0.219415,91152.0,91150.0,0.07035]
[1764937465221,0.23036969,91158.0,91154.0,0.01097044]
[1764937465426,0.23037412,91157.0,91154.0,0.01097044]
[1764937465630,0.21940515,91156.0,91154.0,0.03360044]
[1764937465826,0.21939928,91158.0,91157.0,0.02154041]
[1764937466028,0.21940409,91156.0,91155.0,0.00161604]
[1764937466436,0.23036924,91158.0,91155.0,0.00161604]
[1764937466684,0.01096996,91158.0,91157.0,0.01534]
[1764937466917,0.2303704,91158.0,91157.0,0.01534]
[1764937467759,0.2303704,91158.0,91157.0,0.03797]
[1764937472131,0.2303704,91158.0,91157.0,0.03952724]
[1764937472336,0.2303704,91158.0,91157.0,0.01689724]
[1764937472578,0.2303704,91158.0,91157.0,0.00155724]
[1764937474612,0.01191,91163.0,91157.0,0.00155724]
[1764937474613,0.01096912,91165.0,91161.0,0.0109696]
[1764937474860,0.21938485,91164.0,91162.0,0.00662]
[1764937475051,0.21938725,91163.0,91162.0,0.00662]
[1764937475464,0.21938725,91163.0,91162.0,0.02337025]
[1764937475682,0.05651343,91167.0,91163.0,0.230356]
[1764937475893,0.23035269,91165.0,91164.0,0.01534]
[1764937476245,0.010969,91166.0,91164.0,0.25735484]
[1764937476465,0.25227417,91166.0,91165.0,0.01534]
[1764937477946,0.23035115,91167.0,91165.0,0.01534]
[1764937477947,0.21937787,91167.0,91165.0,0.01534]
[1764937478162,0.21937787,91167.0,91166.0,0.01534]
[1764937478362,0.21937787,91167.0,91166.0,0.03797]
[1764937478584,0.23034402,91168.0,91166.0,0.03797]
[1764937478809,0.01096803,91174.0,91171.0,0.2303344]
[1764937479027,0.23032635,91175.0,91174.0,0.02783]
[1764937479464,0.23032635,91175.0,91174.0,0.05046]
[1764937479902,0.23044583,91175.0,91174.0,0.05046]
[1764937480124,0.23044583,91175.0,91174.0,0.02783]
[1764937480610,0.23144583,91175.0,91174.0,0.02783]
[1764937481046,0.23144583,91175.0,91174.0,0.01249]
[1764937481483,0.23144583,91175.0,91174.0,0.01354755]
[1764937481717,0.00111948,91175.0,91174.0,0.05151755]
[1764937481916,0.00111948,91175.0,91174.0,0.30973874]
[1764937485304,0.00111948,91175.0,91174.0,0.63273874]
[1764937485731,0.00111948,91175.0,91174.0,1.88630174]
[1764937485946,0.00111948,91175.0,91174.0,1.59630974]
[1764937486165,0.00011948,91175.0,91174.0,1.59630974]
[1764937486383,0.00011948,91175.0,91174.0,1.59830974]
[1764937486594,0.00011948,91175.0,91174.0,1.56319274]
[1764937487140,0.00011948,91175.0,91174.0,1.53027474]
[1764937487541,0.00011948,91175.0,91174.0,1.53927474]
[1764937488222,0.23023309,91212.0,91209.0,0.01096383]
[1764937488448,0.23035266,91212.0,91211.0,0.02312]
[1764937489028,0.21927901,91208.0,91207.0,0.03886041]
[1764937489402,0.21927901,91208.0,91207.0,0.05003041]
[1764937490348,0.22127901,91208.0,91207.0,0.05003041]
[1764937490569,0.22127901,91208.0,91207.0,0.02849]
[1764937490789,0.002,91208.0,91207.0,0.02849]
[1764937492207,0.002,91208.0,91207.0,0.01732]
[1764937492658,0.22127901,91208.0,91207.0,0.01732]
[1764937492905,0.002,91208.0,91207.0,0.01732]
[1764937493078,0.002,91208.0,91207.0,0.02849]
[1764937493377,0.22127901,91208.0,91207.0,0.02849]
[1764937494314,0.002,91208.0,91207.0,0.02849]
[1764937495589,0.22127901,91208.0,91207.0,0.02849]
[1764937496736,0.21928141,91207.0,91203.0,0.21928873]
[1764937497146,0.21929103,91203.0,91202.0,0.00023494]
[1764937497346,0.21928885,91204.0,91202.0,0.00023494]
[1764937497577,0.21928885,91204.0,91202.0,0.01655494]
[1764937498245,0.23025517,91205.0,91202.0,0.01655494]
[1764937498397,0.23025517,91205.0,91202.0,0.21929327]
[1764937498805,0.01096479,91201.0,91198.0,0.00967]
[1764937499011,0.21930305,91198.0,91197.0,0.02875]
[1764937499343,0.23027577,91195.0,91194.0,0.01732]
[1764937499857,0.21931533,91193.0,91191.0,0.01096599]
[1764937500059,0.21931533,91193.0,91192.0,0.01732]
[1764937500199,0.01096563,91194.0,91192.0,0.01732]
[1764937500200,0.23028045,91194.0,91192.0,0.01732]
[1764937500401,0.21931748,91192.0,91191.0,0.01732]
[1764937500644,0.01096635,91188.0,91184.0,0.00553]
[1764937500843,0.01096707,91182.0,91180.0,0.2193463]
[1764937501162,0.01096707,91182.0,91179.0,0.01218]
[1764937501163,0.21932756,91188.0,91182.0,0.01096707]
[1764937501362,0.23029449,91188.0,91184.0,0.01096683]
[1764937501705,0.21933244,91186.0,91183.0,0.01096695]
[1764937501988,0.01096671,91185.0,91181.0,0.03886041]
[1764937502388,0.21933913,91183.0,91181.0,0.03886041]
[1764937502540,0.21933143,91187.0,91184.0,0.21933664]
[1764937502742,0.23029875,91186.0,91183.0,0.01096695]
[1764937502942,0.23029875,91186.0,91183.0,0.23030422]
[1764937503382,0.23029875,91186.0,91184.0,0.001]
[1764937503780,0.01096659,91186.0,91181.0,0.0498276]
[1764937503999,0.02192514,91182.0,91181.0,0.01732]
[1764937504201,0.21935096,91179.0,91177.0,0.01732]
[1764937504531,0.02192514,91182.0,91181.0,0.21934394]
[1764937504732,0.02192514,91182.0,91179.0,0.23031512]
[1764937504894,0.01096719,91181.0,91178.0,0.21934636]
[1764937505091,0.02192514,91182.0,91181.0,0.21934394]
[1764937505591,0.02192514,91182.0,91180.0,0.2199926]
[1764937505808,0.02192514,91182.0,91180.0,0.21934634]
[1764937505995,0.02192514,91182.0,91181.0,0.00061688]
[1764937506394,0.02192514,91182.0,91181.0,0.00361688]
[1764937506813,0.02192514,91182.0,91181.0,0.00061688]
[1764937507030,0.24126667,91182.0,91181.0,0.00061688]
[1764937507987,0.02192514,91182.0,91181.0,0.00061688]
[1764937508108,0.02192514,91182.0,91181.0,0.02215729]
[1764937508312,0.02192514,91182.0,91181.0,0.24150123]
[1764937508516,0.02192514,91182.0,91181.0,0.02215729]
[1764937509100,0.28084667,91182.0,91181.0,0.00061688]
[1764937510302,0.28184667,91182.0,91181.0,0.00061688]
[1764937510513,0.25823667,91182.0,91181.0,0.00061688]
[1764937510774,0.25723667,91182.0,91181.0,0.00061688]
[1764937510972,0.25923667,91182.0,91181.0,0.00061688]
[1764937511189,0.24326667,91182.0,91181.0,0.00061688]
[1764937512161,0.02392514,91182.0,91181.0,0.00061688]
[1764937512596,0.02392514,91182.0,91181.0,0.21996082]
[1764937512803,0.28284667,91182.0,91181.0,0.00061688]
[1764937513241,0.25723667,91182.0,91181.0,0.00061688]
[1764937513464,0.28084667,91182.0,91181.0,0.00061688]
[1764937514045,0.28184667,91182.0,91181.0,0.00061688]
[1764937514363,0.28084667,91182.0,91181.0,0.00061688]
[1764937516299,0.28184667,91182.0,91181.0,0.00061688]
[1764937521090,0.02292514,91182.0,91181.0,0.21996082]
[1764937521292,0.02292514,91182.0,91181.0,0.25782123]
[1764937521812,0.001,91182.0,91181.0,0.28231123]
[1764937522350,0.001,91182.0,91181.0,0.26077082]
[1764937522565,0.001,91182.0,91181.0,0.28231123]
[1764937522718,0.001,91182.0,91181.0,0.60531123]
[1764937522919,0.01096443,91204.0,91202.0,0.21929254]
[1764937523119,0.01108422,91204.0,91202.0,0.21929254]
[1764937523324,0.00011979,91204.0,91203.0,0.21929103]
[1764937523527,0.00011979,91204.0,91203.0,0.24083144]
[1764937524850,0.00111979,91204.0,91203.0,0.24083144]
[1764937526045,0.00011979,91204.0,91203.0,0.24083144]
[1764937526853,0.21940841,91204.0,91203.0,0.02154041]
[1764937527055,0.00011979,91204.0,91202.0,0.21929292]
[1764937527699,0.00011979,91204.0,91201.0,0.23025984]
[1764937527921,0.00011979,91204.0,91203.0,0.21929103]
[1764937528800,0.00011979,91204.0,91201.0,0.23025984]
[1764937529001,0.00011979,91204.0,91203.0,0.21929103]
[1764937529602,0.00011979,91204.0,91202.0,0.21929334]
[1764937529789,0.01108422,91204.0,91202.0,0.21929256]
[1764937530104,0.00011979,91204.0,91203.0,0.21929103]
[1764937530453,0.00011979,91204.0,91203.0,0.27897144]
[1764937532121,0.00011979,91204.0,91203.0,0.25743103]
[1764937533101,0.00011979,91204.0,91203.0,0.25943103]
[1764937533303,0.00011979,91204.0,91203.0,0.26043103]
[1764937534574,0.00011979,91204.0,91203.0,0.27775103]
[1764937534774,0.00011979,91204.0,91203.0,0.29929144]
[1764937536341,0.00011979,91204.0,91203.0,0.27654144]
[1764937536953,0.00011979,91204.0,91203.0,0.24383144]
[1764937537579,0.00011979,91204.0,91203.0,0.25922144]
[1764937537841,0.00011979,91204.0,91203.0,0.28197144]
[1764937538181,0.00011979,91204.0,91203.0,0.22229103]
[1764937538428,0.21940841,91204.0,91203.0,0.003]
[1764937538644,0.21940841,91204.0,91203.0,0.02032]
[1764937539046,0.21940841,91204.0,91203.0,0.01932]
[1764937539623,0.21940841,91204.0,91203.0,0.02032]
[1764937539819,0.21940841,91204.0,91203.0,0.01832]
[1764937539958,0.21940841,91204.0,91203.0,0.01932]
[1764937541054,0.00011979,91204.0,91203.0,0.01932]
[1764937542196,0.00011979,91204.0,91203.0,0.23861103]
[1764937542733,0.00011979,91204.0,91203.0,0.27675103]
[1764937542875,0.00011979,91204.0,91203.0,0.29829144]
[1764937546170,0.00011979,91204.0,91203.0,0.27675103]
[1764937546951,0.00011979,91204.0,91203.0,0.23668103]
[1764937547162,0.00011979,91204.0,91203.0,0.22129103]
[1764937547515,0.21940841,91204.0,91203.0,0.01932]
[1764937548169,0.28133355,91204.0,91203.0,0.002]
[1764937548634,0.28133355,91204.0,91203.0,0.001]
[1764937548843,0.21929584,91201.0,91200.0,0.01732]
[1764937548981,0.25929584,91201.0,91200.0,0.01732]
[1764937549184,0.21930395,91198.0,91196.0,0.33396539]
[1764937549426,0.21930395,91198.0,91197.0,0.01732]
[1764937550076,0.21930245,91199.0,91197.0,0.34032]
[1764937550955,0.21930305,91198.0,91197.0,0.34032]
[1764937551221,0.21930305,91198.0,91197.0,0.01732]
[1764937551414,0.23026748,91199.0,91197.0,0.01732]
[1764937551838,0.01096467,91202.0,91199.0,0.323]
[1764937552082,0.21929595,91201.0,91199.0,0.5423003]
[1764937552325,0.23025836,91202.0,91199.0,0.5423003]
[1764937552535,0.23026007,91203.0,91200.0,0.2302627]
[1764937552744,0.2302581,91202.0,91199.0,0.33396503]
[1764937552948,0.21929824,91200.0,91199.0,0.323]
[1764937553388,0.01096455,91203.0,91200.0,0.01096491]
[1764937553693,0.23025748,91203.0,91200.0,0.23026123]
[1764937553900,0.00011979,91204.0,91203.0,0.21929103]
[1764937554108,0.00011979,91204.0,91203.0,0.23541103]
[1764937554313,0.00011979,91204.0,91203.0,0.28020144]
[1764937555341,0.00011979,91204.0,91203.0,0.28120144]
[1764937555546,0.00011979,91204.0,91203.0,0.28320144]
[1764937557888,0.00011979,91204.0,91203.0,0.60620144]
[1764937570236,0.00011979,91204.0,91203.0,1.28601144]
[1764937572059,0.00011979,91204.0,91203.0,1.30333144]
[1764937572266,0.00011979,91204.0,91203.0,1.19396244]
[1764937572470,0.00011979,91204.0,91203.0,1.04298744]
[1764937580405,0.00011979,91204.0,91203.0,0.95569044]
[1764937583112,0.00011979,91204.0,91203.0,0.93415003]
[1764937583320,0.00011979,91204.0,91203.0,0.95569044]
[1764937584372,0.00116522,91226.0,91225.0,0.24077855]
[1764937584586,0.00116522,91226.0,91225.0,0.60581855]
[1764937584794,0.00116522,91226.0,91225.0,0.62866855]
[1764937585630,0.00216522,91226.0,91225.0,0.62866855]
[1764937586503,0.00216522,91226.0,91225.0,0.62966855]
[1764937587367,0.00116522,91226.0,91225.0,0.62966855]
[1764937587576,0.00116522,91226.0,91225.0,0.63166855]
[1764937591587,0.00116522,91226.0,91225.0,0.56895814]
[1764937591807,0.00116522,91226.0,91225.0,0.60881855]
[1764937592432,0.00116522,91226.0,91225.0,0.60781855]
[1764937592631,0.00116522,91226.0,91225.0,0.61399855]
[1764937592791,0.00116522,91226.0,91225.0,0.63131855]
[1764937593309,0.00116522,91226.0,91225.0,0.62931855]
[1764937593510,0.00116522,91226.0,91225.0,0.63031855]
[1764937593730,0.00116522,91226.0,91225.0,0.63131855]
[1764937593923,0.00116522,91226.0,91225.0,0.60681855]
[1764937595442,0.00116522,91226.0,91225.0,0.37211041]
[1764937595644,0.00116522,91226.0,91225.0,0.33325]
[1764937595845,0.00116522,91226.0,91225.0,0.56980814]
[1764937596249,0.00116522,91226.0,91225.0,0.56055814]
[1764937596778,0.00216522,91226.0,91225.0,0.55955814]
[1764937597337,0.00216522,91226.0,91225.0,0.324]
[1764937597525,0.00216522,91226.0,91225.0,0.56055814]
[1764937598865,0.00216522,91226.0,91225.0,0.324]
[1764937599047,0.22140096,91226.0,91225.0,0.34132]
[1764937599255,0.22140096,91226.0,91225.0,0.324]
[1764937599565,0.22140096,91226.0,91225.0,0.34132]
[1764937604956,0.00216522,91226.0,91225.0,0.34132]
[1764937605131,0.22140096,91226.0,91225.0,0.34132]
[1764937605335,0.22140096,91226.0,91225.0,0.01832]
[1764937606181,0.22140096,91226.0,91225.0,0.001]
[1764937606337,0.22140096,91226.0,91225.0,0.01832]
[1764937608991,0.26202096,91226.0,91225.0,0.01832]
[1764937609249,0.23739096,91226.0,91225.0,0.01832]
[1764937609426,0.22140096,91226.0,91225.0,0.01832]
[1764937613548,0.00216522,91226.0,91225.0,0.01832]
[1764937613759,0.00216522,91226.0,91225.0,0.25325814]
[1764937613986,0.00216522,91226.0,91225.0,0.29747855]
[1764937615142,0.00216522,91226.0,91225.0,0.27479855]
[1764937616361,0.00216522,91226.0,91225.0,0.05556041]
[1764937616664,0.22140096,91226.0,91225.0,0.01832]
[1764937616857,0.2663561,91226.0,91225.0,0.001]
[1764937617061,0.2663561,91226.0,91225.0,0.01832]
[1764937618580,0.2433261,91226.0,91225.0,0.01832]
[1764937618987,0.2598461,91226.0,91225.0,0.01832]
[1764937620494,0.2828761,91226.0,91225.0,0.01832]
[1764937620973,0.23792096,91226.0,91225.0,0.01832]
[1764937621173,0.2433261,91226.0,91225.0,0.01832]
[1764937622592,0.22140096,91226.0,91225.0,0.01832]
[1764937622776,0.00216522,91226.0,91225.0,0.29884855]
[1764937623172,0.00216522,91226.0,91225.0,0.27730814]
[1764937623371,0.00216522,91226.0,91225.0,0.29884855]
[1764937623573,0.00216522,91226.0,91225.0,0.60030814]
[1764937623798,0.00216522,91226.0,91225.0,0.62184855]
[1764937624451,0.00216522,91226.0,91225.0,0.54323814]
[1764937624658,0.23792096,91226.0,91225.0,0.324]
[1764937624801,0.23792096,91226.0,91225.0,0.34132]
[1764937625184,0.23792096,91226.0,91225.0,0.01832]
[1764937625434,0.23792096,91226.0,91225.0,0.001]
[1764937625641,0.23792096,91226.0,91225.0,0.01832]
[1764937629551,0.01868522,91226.0,91225.0,0.01832]
[1764937629778,0.00216522,91226.0,91225.0,0.01832]
[1764937630773,0.22140096,91226.0,91225.0,0.01832]
[1764937631178,0.00216522,91226.0,91225.0,0.01832]
[1764937632043,0.23792096,91226.0,91225.0,0.01832]
[1764937632247,0.26095096,91226.0,91225.0,0.01832]
[1764937632492,0.01868522,91226.0,91225.0,0.01832]
[1764937632876,0.23792096,91226.0,91225.0,0.01832]
[1764937633892,0.01868522,91226.0,91225.0,0.01832]
[1764937634071,0.23792096,91226.0,91225.0,0.01832]
[1764937634406,0.26095096,91226.0,91225.0,0.01832]
[1764937634951,0.01868522,91226.0,91225.0,0.01832]
[1764937635152,0.00216522,91226.0,91225.0,0.01832]
[1764937636074,0.00216522,91226.0,91225.0,0.001]
[1764937636075,0.04171522,91226.0,91225.0,0.001]
[1764937636277,0.26095096,91226.0,91225.0,0.001]
[1764937637086,0.25995096,91226.0,91225.0,0.001]
[1764937637329,0.21924535,91222.0,91221.0,0.01732]
[1764937637536,0.24731535,91222.0,91221.0,0.01732]
[1764937637743,0.27034535,91222.0,91221.0,0.01732]
[1764937638442,0.0109631,91215.0,91212.0,0.323]
[1764937638640,0.21927394,91212.0,91209.0,0.21927644]
[1764937638808,0.02807,91213.0,91209.0,0.23024031]
[1764937639009,0.23081909,91213.0,91210.0,0.23659202]
[1764937639228,0.24178243,91213.0,91210.0,0.23659202]
[1764937639444,0.24178243,91213.0,91210.0,0.01732]
[1764937639648,0.21927179,91211.0,91210.0,0.01732]
[1764937639852,0.21927478,91210.0,91208.0,0.23024205]
[1764937640053,0.23023537,91211.0,91208.0,0.23024205]
[1764937640412,0.01096346,91212.0,91209.0,0.01096383]
[1764937640589,0.01096346,91212.0,91210.0,0.2365942]
[1764937640887,0.21927179,91211.0,91210.0,0.01732]
[1764937641145,0.21928141,91207.0,91206.0,0.323]
[1764937641272,0.21928141,91207.0,91206.0,0.34032]
[1764937641616,0.23580141,91207.0,91206.0,0.323]
[1764937641822,0.25883141,91207.0,91206.0,0.323]
[1764937642017,0.23024548,91207.0,91204.0,0.02828443]
[1764937642196,0.02192514,91208.0,91206.0,0.323]
[1764937642395,0.02192514,91208.0,91207.0,0.21928141]
[1764937642594,0.02192514,91208.0,91206.0,0.54228342]
[1764937642797,0.02192514,91208.0,91206.0,0.54328342]
[1764937643364,0.24120492,91208.0,91206.0,0.324]
[1764937643576,0.24120492,91208.0,91207.0,0.01732]
[1764937643778,0.02192514,91208.0,91207.0,0.01732]
[1764937644387,0.02392514,91208.0,91207.0,0.01732]
[1764937644792,0.02192514,91208.0,91207.0,0.01732]
[1764937644999,0.02392514,91208.0,91207.0,0.01732]
[1764937645730,0.02392514,91208.0,91207.0,0.23660141]
[1764937646133,0.02392514,91208.0,91207.0,0.01732]
[1764937646315,0.02392514,91208.0,91207.0,0.23660141]
[1764937646670,0.02392514,91208.0,91207.0,0.01732]
[1764937647512,0.24320415,91208.0,91207.0,0.01732]
[1764937647733,0.02392514,91208.0,91207.0,0.01732]
[1764937649134,0.24320415,91208.0,91207.0,0.01732]
[1764937650754,0.21928353,91207.0,91205.0,0.323]
[1764937650961,0.2541684,91208.0,91206.0,0.01732]
[1764937651219,0.02392514,91208.0,91206.0,0.23660342]
[1764937651422,0.02392514,91208.0,91207.0,0.21928141]
[1764937651423,0.002,91208.0,91207.0,0.21928141]
[1764937653190,0.01155,91210.0,91209.0,0.2192766]
[1764937654614,0.02251334,91213.0,91210.0,0.23023379]
[1764937656134,0.21926997,91212.0,91210.0,0.23023379]
[1764937656701,0.21926997,91212.0,91209.0,0.21927615]
[1764937657433,0.21927466,91210.0,91207.0,0.00925]
[1764937657641,0.21928069,91208.0,91206.0,0.01732]
[1764937658355,0.23024012,91210.0,91207.0,0.23024548]
[1764937658751,0.21927839,91209.0,91206.0,0.23949729]
[1764937658947,0.21927839,91209.0,91207.0,0.01732]
[1764937659147,0.21927839,91209.0,91208.0,0.01732]
[1764937659523,0.21927839,91209.0,91207.0,0.21928009]
[1764937659710,0.01096358,91211.0,91208.0,0.23659901]
[1764937659890,0.21926649,91214.0,91211.0,0.01096358]
[1764937660108,0.01096358,91211.0,91208.0,0.01732]
[1764937660308,0.06824798,91227.0,91220.0,0.21924837]
[1764937660506,0.0109619,91225.0,91221.0,0.01096238]
[1764937660706,0.00116522,91226.0,91225.0,0.21923814]
[1764937661314,0.00116522,91226.0,91225.0,0.22848814]
[1764937661724,0.00216522,91226.0,91225.0,0.26812814]
[1764937661943,0.00216522,91226.0,91225.0,0.28966855]
[1764937662633,0.0109619,91225.0,91216.0,0.01096298]
[1764937662847,0.01096226,91222.0,91218.0,0.02828274]
[1764937662984,0.23020933,91222.0,91218.0,0.24753542]
[1764937663186,0.02192514,91224.0,91221.0,0.01096238]
[1764937663412,0.00116522,91226.0,91225.0,0.24077855]
[1764937663605,0.00116522,91226.0,91225.0,0.25002855]
[1764937664512,0.00716522,91226.0,91225.0,0.25002855]
[1764937664745,0.00716522,91226.0,91225.0,0.22848814]
[1764937664945,0.00116522,91226.0,91225.0,0.22848814]
[1764937665118,0.00416522,91226.0,91225.0,0.22848814]